[Event "Late-Titled-Tuesday-Blitz-August-29-2023"]
[Site "Chess.com"]
[Date "2023.08.29"]
[Round "6"]
[White "ShrookWafa"]
[Black "Semetey"]
[Result "0-1"]
[WhiteElo "2418"]
[BlackElo "2591"]
[TimeControl "180+1"]
[EndTime "15:06:52 PDT"]
[Termination "Semetey won by resignation"]

1. e4 {[%clk 0:03:00]} 1... e5 {[%clk 0:02:55.6]} 2. Nf3 {[%clk 0:02:59.1]} 2...
Nc6 {[%clk 0:02:54.5]} 3. Bb5 {[%clk 0:02:58.8]} 3... a6 {[%clk 0:02:53.5]} 4.
Ba4 {[%clk 0:02:58.9]} 4... Nf6 {[%clk 0:02:53.1]} 5. d4 {[%clk 0:02:58.3]} 5...
exd4 {[%clk 0:02:49.3]} 6. O-O {[%clk 0:02:57.9]} 6... Be7 {[%clk 0:02:48.4]} 7.
Re1 {[%clk 0:02:57.6]} 7... O-O {[%clk 0:02:47.8]} 8. e5 {[%clk 0:02:56.2]} 8...
Nd5 {[%clk 0:02:46.9]} 9. Bb3 {[%clk 0:02:56.3]} 9... Nb6 {[%clk 0:02:42.8]} 10.
Nxd4 {[%clk 0:02:56.3]} 10... Na5 {[%clk 0:02:42.8]} 11. Nf5 {[%clk 0:02:51.4]}
11... Nxb3 {[%clk 0:02:39.6]} 12. axb3 {[%clk 0:02:46.6]} 12... d5 {[%clk
0:02:34.8]} 13. exd6 {[%clk 0:02:39.3]} 13... Bxd6 {[%clk 0:02:23.1]} 14. Nxd6
{[%clk 0:02:38.9]} 14... cxd6 {[%clk 0:02:22.2]} 15. Bf4 {[%clk 0:02:38.2]}
15... d5 {[%clk 0:02:20.2]} 16. Nc3 {[%clk 0:02:36.4]} 16... Be6 {[%clk
0:02:19.7]} 17. Qd4 {[%clk 0:02:35.2]} 17... Nc8 {[%clk 0:02:14.5]} 18. Rad1
{[%clk 0:02:30.5]} 18... Ne7 {[%clk 0:02:13.4]} 19. Bg5 {[%clk 0:02:29.6]} 19...
Nc6 {[%clk 0:02:07.7]} 20. Bxd8 {[%clk 0:02:10.4]} 20... Nxd4 {[%clk 0:02:06.2]}
21. Rxd4 {[%clk 0:02:10.7]} 21... Rfxd8 {[%clk 0:02:04.5]} 22. Red1 {[%clk
0:02:10.6]} 22... Rac8 {[%clk 0:02:04.5]} 23. h3 {[%clk 0:02:06]} 23... Kf8
{[%clk 0:02:03.6]} 24. R1d2 {[%clk 0:02:05.4]} 24... b5 {[%clk 0:01:46.1]} 25.
b4 {[%clk 0:01:47.9]} 25... Rc4 {[%clk 0:01:45.2]} 26. Ne2 {[%clk 0:01:45.9]}
26... Rxd4 {[%clk 0:01:40.6]} 27. Rxd4 {[%clk 0:01:45.8]} 27... Rc8 {[%clk
0:01:38.5]} 28. c3 {[%clk 0:01:45.6]} 28... Ke7 {[%clk 0:01:38.7]} 29. Nf4
{[%clk 0:01:45]} 29... Kd6 {[%clk 0:01:39]} 30. Kf1 {[%clk 0:01:45]} 30... Rc4
{[%clk 0:01:34.6]} 31. Ne2 {[%clk 0:01:00.3]} 31... Bf5 {[%clk 0:01:09.2]} 32.
Ke1 {[%clk 0:00:56.7]} 32... Rxd4 {[%clk 0:01:05.3]} 33. Nxd4 {[%clk 0:00:56.2]}
33... Be4 {[%clk 0:01:05]} 34. g3 {[%clk 0:00:55.7]} 34... g5 {[%clk 0:01:01.2]}
35. Nb3 {[%clk 0:00:47.6]} 35... Kc6 {[%clk 0:00:59.6]} 36. Nc5 {[%clk
0:00:47.6]} 36... a5 {[%clk 0:00:59.5]} 37. Nxe4 {[%clk 0:00:45.9]} 37... dxe4
{[%clk 0:00:58.1]} 38. bxa5 {[%clk 0:00:46.1]} 38... f5 {[%clk 0:00:50.6]} 39.
Ke2 {[%clk 0:00:40.3]} 39... f4 {[%clk 0:00:50]} 40. h4 {[%clk 0:00:39.6]} 40...
h6 {[%clk 0:00:35.7]} 41. hxg5 {[%clk 0:00:28.5]} 41... hxg5 {[%clk 0:00:36.6]}
42. gxf4 {[%clk 0:00:28.7]} 42... gxf4 {[%clk 0:00:36]} 43. b4 {[%clk
0:00:25.1]} 43... Kd5 {[%clk 0:00:34.7]} 44. Kd2 {[%clk 0:00:24.3]} 44... Kc6
{[%clk 0:00:30.5]} 45. Ke1 {[%clk 0:00:22.4]} 45... Kd5 {[%clk 0:00:29.9]} 46.
Kf1 {[%clk 0:00:22.9]} 46... Kc6 {[%clk 0:00:25.4]} 47. Kg2 {[%clk 0:00:23.1]}
47... Kd5 {[%clk 0:00:25.9]} 48. Kh3 {[%clk 0:00:20.6]} 48... Kc4 {[%clk
0:00:24.3]} 49. a6 {[%clk 0:00:19.9]} 49... e3 {[%clk 0:00:24.2]} 50. fxe3
{[%clk 0:00:19.9]} 50... fxe3 {[%clk 0:00:25.1]} 51. Kg2 {[%clk 0:00:18.5]}
51... Kxc3 {[%clk 0:00:24.1]} 52. a7 {[%clk 0:00:17.3]} 52... e2 {[%clk
0:00:24.3]} 53. a8=Q {[%clk 0:00:11.9]} 53... e1=Q {[%clk 0:00:24.2]} 54. Qf3+
{[%clk 0:00:11.4]} 54... Kxb4 {[%clk 0:00:23.7]} 55. Qf8+ {[%clk 0:00:11.5]}
55... Ka4 {[%clk 0:00:21.4]} 56. Qa8+ {[%clk 0:00:11.4]} 56... Kb3 {[%clk
0:00:21.6]} 57. Qf3+ {[%clk 0:00:11]} 57... Qc3 {[%clk 0:00:21.3]} 58. Qd5+
{[%clk 0:00:10.9]} 58... Qc4 {[%clk 0:00:21.5]} 59. Qf3+ {[%clk 0:00:10.9]}
59... Ka4 {[%clk 0:00:21.5]} 60. Qa8+ {[%clk 0:00:10.8]} 60... Kb4 {[%clk
0:00:21.8]} 61. Qf8+ {[%clk 0:00:10.8]} 61... Qc5 {[%clk 0:00:21.9]} 62. Qf4+
{[%clk 0:00:10.9]} 62... Qc4 {[%clk 0:00:20.4]} 63. Qd6+ {[%clk 0:00:10.8]}
63... Kb3 {[%clk 0:00:20.6]} 64. Qg3+ {[%clk 0:00:10.5]} 64... Kb2 {[%clk
0:00:20.3]} 65. Qe5+ {[%clk 0:00:08.8]} 65... Ka2 {[%clk 0:00:18.7]} 66. Kf2
{[%clk 0:00:07.7]} 66... b4 {[%clk 0:00:17]} 67. Ke1 {[%clk 0:00:07.2]} 67...
Qc3+ {[%clk 0:00:16.2]} 68. Qxc3 {[%clk 0:00:07]} 68... bxc3 {[%clk 0:00:17.1]}
69. Kd1 {[%clk 0:00:06.9]} 69... Kb1 {[%clk 0:00:17]} 70. Ke2 {[%clk 0:00:07.8]}
70... c2 {[%clk 0:00:17]} 71. Ke3 {[%clk 0:00:08.2]} 71... c1=Q+ {[%clk
0:00:17.9]} 0-1

[Event "Late-Titled-Tuesday-Blitz-August-29-2023"]
[Site "Chess.com"]
[Date "2023.08.29"]
[Round "6"]
[White "MBA_CHESS_2021"]
[Black "Haykoooo0o"]
[Result "0-1"]
[WhiteElo "2288"]
[BlackElo "2468"]
[TimeControl "180+1"]
[EndTime "15:06:54 PDT"]
[Termination "Haykoooo0o won on time"]

1. e4 {[%clk 0:03:00.9]} 1... c6 {[%clk 0:02:58.8]} 2. d4 {[%clk 0:03:00.4]}
2... d5 {[%clk 0:02:59.2]} 3. e5 {[%clk 0:03:01.1]} 3... c5 {[%clk 0:02:59.5]}
4. dxc5 {[%clk 0:02:59.4]} 4... e6 {[%clk 0:03:00]} 5. Be3 {[%clk 0:02:57.7]}
5... Nd7 {[%clk 0:02:56.5]} 6. Nf3 {[%clk 0:02:55.7]} 6... Bxc5 {[%clk
0:02:55.2]} 7. Bxc5 {[%clk 0:02:50.1]} 7... Nxc5 {[%clk 0:02:56.1]} 8. Be2
{[%clk 0:02:47.9]} 8... Ne7 {[%clk 0:02:54.9]} 9. O-O {[%clk 0:02:48]} 9... O-O
{[%clk 0:02:51.4]} 10. c3 {[%clk 0:02:44]} 10... Qb6 {[%clk 0:02:49.4]} 11. Qc2
{[%clk 0:02:39.6]} 11... Bd7 {[%clk 0:02:46]} 12. Nbd2 {[%clk 0:02:35.9]} 12...
Bb5 {[%clk 0:02:43.2]} 13. b4 {[%clk 0:02:19]} 13... Nd7 {[%clk 0:02:11.2]} 14.
Bxb5 {[%clk 0:02:14.4]} 14... Qxb5 {[%clk 0:02:11.2]} 15. Nd4 {[%clk 0:02:14.6]}
15... Qb6 {[%clk 0:02:11.2]} 16. f4 {[%clk 0:02:00.6]} 16... Nf5 {[%clk
0:02:10.2]} 17. Nb3 {[%clk 0:01:56]} 17... Ne3 {[%clk 0:02:08.5]} 18. Qd3 {[%clk
0:01:49.9]} 18... Nxf1 {[%clk 0:02:08.4]} 19. Rxf1 {[%clk 0:01:50.6]} 19... Rac8
{[%clk 0:02:07.4]} 20. Rf3 {[%clk 0:01:45.1]} 20... Qa6 {[%clk 0:01:57.5]} 21.
Qxa6 {[%clk 0:01:35.9]} 21... bxa6 {[%clk 0:01:58.4]} 22. Kf2 {[%clk 0:01:33]}
22... Rc7 {[%clk 0:01:50.1]} 23. Ke2 {[%clk 0:01:32.4]} 23... Rfc8 {[%clk
0:01:49.1]} 24. Kd2 {[%clk 0:01:32.4]} 24... Nb6 {[%clk 0:01:47.9]} 25. Nc5
{[%clk 0:01:27.2]} 25... a5 {[%clk 0:01:43]} 26. Nb5 {[%clk 0:01:15.5]} 26...
axb4 {[%clk 0:01:01.9]} 27. cxb4 {[%clk 0:01:07.5]} 27... Rxc5 {[%clk
0:00:50.4]} 28. bxc5 {[%clk 0:01:05.9]} 28... Rxc5 {[%clk 0:00:51.3]} 29. Nxa7
{[%clk 0:00:52.3]} 29... Ra5 {[%clk 0:00:49.6]} 30. Rb3 {[%clk 0:00:51.7]} 30...
Rxa7 {[%clk 0:00:34.7]} 31. Rxb6 {[%clk 0:00:51.1]} 31... Rxa2+ {[%clk
0:00:35.3]} 32. Ke3 {[%clk 0:00:50.1]} 32... g5 {[%clk 0:00:31.8]} 33. Kf3
{[%clk 0:00:47.6]} 33... gxf4 {[%clk 0:00:29.9]} 34. Rb4 {[%clk 0:00:46]} 34...
Kg7 {[%clk 0:00:16.3]} 35. Rxf4 {[%clk 0:00:45.5]} 35... Ra3+ {[%clk 0:00:15.9]}
36. Kf2 {[%clk 0:00:41.9]} 36... Rc3 {[%clk 0:00:14]} 37. Rg4+ {[%clk
0:00:33.5]} 37... Kf8 {[%clk 0:00:13.6]} 38. Rh4 {[%clk 0:00:32.9]} 38... Rc2+
{[%clk 0:00:13.3]} 39. Kf3 {[%clk 0:00:32.4]} 39... Rc3+ {[%clk 0:00:13.6]} 40.
Kf2 {[%clk 0:00:32.7]} 40... Kg8 {[%clk 0:00:09.6]} 41. Rg4+ {[%clk 0:00:32.4]}
41... Kh8 {[%clk 0:00:10]} 42. Rf4 {[%clk 0:00:31.8]} 42... Rc7 {[%clk
0:00:10.1]} 43. h4 {[%clk 0:00:31.1]} 43... Kg7 {[%clk 0:00:09.5]} 44. Rg4+
{[%clk 0:00:29.3]} 44... Kf8 {[%clk 0:00:09.6]} 45. Rf4 {[%clk 0:00:28.7]} 45...
Rc3 {[%clk 0:00:07.9]} 46. Rf6 {[%clk 0:00:27.6]} 46... Kg7 {[%clk 0:00:06.9]}
47. Rf4 {[%clk 0:00:25.5]} 47... Rc2+ {[%clk 0:00:06.5]} 48. Kf3 {[%clk
0:00:25.4]} 48... Rc1 {[%clk 0:00:07]} 49. Rg4+ {[%clk 0:00:24]} 49... Kf8
{[%clk 0:00:06.9]} 50. Ra4 {[%clk 0:00:21.8]} 50... Re1 {[%clk 0:00:06]} 51. Kf4
{[%clk 0:00:20.5]} 51... Kg7 {[%clk 0:00:05.6]} 52. g4 {[%clk 0:00:19.5]} 52...
h6 {[%clk 0:00:03.8]} 53. Rb4 {[%clk 0:00:18.1]} 53... Kg6 {[%clk 0:00:03.9]}
54. h5+ {[%clk 0:00:12.9]} 54... Kg7 {[%clk 0:00:04.2]} 55. Ra4 {[%clk
0:00:11.8]} 55... Rf1+ {[%clk 0:00:04.1]} 56. Kg3 {[%clk 0:00:11.2]} 56... Re1
{[%clk 0:00:03.8]} 57. Kf4 {[%clk 0:00:11.1]} 57... Rc1 {[%clk 0:00:03.6]} 58.
Rb4 {[%clk 0:00:10.1]} 58... Rc7 {[%clk 0:00:03.6]} 59. Ke3 {[%clk 0:00:06.7]}
59... f6 {[%clk 0:00:03.6]} 60. Rb6 {[%clk 0:00:05.7]} 60... Re7 {[%clk
0:00:01.7]} 61. Kd4 {[%clk 0:00:05.3]} 61... fxe5+ {[%clk 0:00:02.1]} 62. Kxe5
{[%clk 0:00:05.3]} 62... Kf7 {[%clk 0:00:03]} 63. Rd6 {[%clk 0:00:04.4]} 63...
Kf8 {[%clk 0:00:02.7]} 64. Rd8+ {[%clk 0:00:03.4]} 64... Kf7 {[%clk 0:00:03]}
65. Rh8 {[%clk 0:00:02.9]} 65... Kg7 {[%clk 0:00:02.4]} 66. Rd8 {[%clk
0:00:02.6]} 66... Kf7 {[%clk 0:00:02.5]} 67. Rd6 {[%clk 0:00:02.2]} 67... Re8
{[%clk 0:00:02.4]} 0-1

[Event "Late-Titled-Tuesday-Blitz-August-29-2023"]
[Site "Chess.com"]
[Date "2023.08.29"]
[Round "6"]
[White "Valeron87"]
[Black "Grebeniuk-S"]
[Result "1-0"]
[WhiteElo "2474"]
[BlackElo "2608"]
[TimeControl "180+1"]
[EndTime "15:06:57 PDT"]
[Termination "Valeron87 won by resignation"]

1. e4 {[%clk 0:03:00.9]} 1... c5 {[%clk 0:02:56.2]} 2. Nf3 {[%clk 0:03:01]} 2...
Nc6 {[%clk 0:02:55.9]} 3. d4 {[%clk 0:03:01.5]} 3... cxd4 {[%clk 0:02:56]} 4.
Nxd4 {[%clk 0:03:02.4]} 4... g6 {[%clk 0:02:56.2]} 5. c4 {[%clk 0:03:02]} 5...
Bg7 {[%clk 0:02:56.2]} 6. Be3 {[%clk 0:03:02.4]} 6... Nf6 {[%clk 0:02:55.4]} 7.
Nc3 {[%clk 0:03:02.6]} 7... Qa5 {[%clk 0:02:54]} 8. Nb3 {[%clk 0:02:46.9]} 8...
Qc7 {[%clk 0:02:53]} 9. Be2 {[%clk 0:02:46.4]} 9... O-O {[%clk 0:02:52.4]} 10.
O-O {[%clk 0:02:46.5]} 10... d6 {[%clk 0:02:52.2]} 11. h3 {[%clk 0:02:46.3]}
11... a5 {[%clk 0:02:50.3]} 12. Nb5 {[%clk 0:02:43.5]} 12... Qb8 {[%clk
0:02:48.6]} 13. Qd3 {[%clk 0:02:32.6]} 13... Be6 {[%clk 0:02:42.6]} 14. Rac1
{[%clk 0:02:26.2]} 14... Ne5 {[%clk 0:02:41.7]} 15. Qb1 {[%clk 0:02:24.8]} 15...
Rc8 {[%clk 0:02:39]} 16. Nd2 {[%clk 0:02:20.1]} 16... a4 {[%clk 0:02:25.2]} 17.
f4 {[%clk 0:02:19.1]} 17... Nc6 {[%clk 0:02:25.3]} 18. f5 {[%clk 0:02:17.3]}
18... Bd7 {[%clk 0:02:24.9]} 19. a3 {[%clk 0:02:14.1]} 19... Ne5 {[%clk
0:02:24.3]} 20. Kh1 {[%clk 0:01:55.9]} 20... Bxb5 {[%clk 0:02:04.7]} 21. cxb5
{[%clk 0:01:55.8]} 21... Nfd7 {[%clk 0:02:05.6]} 22. Rxc8+ {[%clk 0:01:45.9]}
22... Qxc8 {[%clk 0:02:05.8]} 23. Rc1 {[%clk 0:01:46.6]} 23... Qd8 {[%clk
0:02:05.7]} 24. Qa2 {[%clk 0:01:30.9]} 24... Rc8 {[%clk 0:02:03.6]} 25. Rxc8
{[%clk 0:01:26.8]} 25... Qxc8 {[%clk 0:02:04.5]} 26. Qd5 {[%clk 0:01:15.6]}
26... Nf6 {[%clk 0:01:29.5]} 27. Qd4 {[%clk 0:01:03.2]} 27... gxf5 {[%clk
0:01:27.9]} 28. exf5 {[%clk 0:01:01.9]} 28... Qxf5 {[%clk 0:01:28.8]} 29. Qa7
{[%clk 0:00:59.1]} 29... Qc8 {[%clk 0:01:07.7]} 30. Qxa4 {[%clk 0:00:57.8]}
30... Nd5 {[%clk 0:01:07.7]} 31. Bg1 {[%clk 0:00:48.6]} 31... Bh6 {[%clk
0:00:46.2]} 32. Nf3 {[%clk 0:00:47.3]} 32... Ng6 {[%clk 0:00:37.6]} 33. Qd1
{[%clk 0:00:34.9]} 33... Ndf4 {[%clk 0:00:37.1]} 34. Bf1 {[%clk 0:00:34.2]}
34... Qf5 {[%clk 0:00:28.3]} 35. a4 {[%clk 0:00:33.7]} 35... Nh5 {[%clk
0:00:17.5]} 36. Bf2 {[%clk 0:00:32.4]} 36... Bf4 {[%clk 0:00:15.5]} 37. a5
{[%clk 0:00:24.5]} 37... Bg3 {[%clk 0:00:13.3]} 38. Qe1 {[%clk 0:00:22.7]} 38...
Bxf2 {[%clk 0:00:08.4]} 39. Qxf2 {[%clk 0:00:23.6]} 39... Qb1 {[%clk 0:00:06.2]}
40. a6 {[%clk 0:00:22.3]} 40... bxa6 {[%clk 0:00:06.3]} 41. bxa6 {[%clk
0:00:22.2]} 41... Qa1 {[%clk 0:00:07.2]} 42. a7 {[%clk 0:00:20.6]} 42... Nhf4
{[%clk 0:00:06.1]} 43. Kh2 {[%clk 0:00:20.4]} 43... h5 {[%clk 0:00:05.1]} 44.
Qd2 {[%clk 0:00:18]} 44... Ne6 {[%clk 0:00:02.2]} 45. Qf2 {[%clk 0:00:09.3]}
45... Ngf4 {[%clk 0:00:01.8]} 46. Bc4 {[%clk 0:00:08.6]} 46... Kg7 {[%clk
0:00:01.5]} 47. Bxe6 {[%clk 0:00:08.1]} 47... Nxe6 {[%clk 0:00:02.4]} 48. Nh4
{[%clk 0:00:07.6]} 48... Nc5 {[%clk 0:00:02.6]} 49. Nf5+ {[%clk 0:00:07.8]}
49... Kf8 {[%clk 0:00:03.3]} 50. b4 {[%clk 0:00:05.2]} 50... Ne4 {[%clk
0:00:02.8]} 51. Qe3 {[%clk 0:00:05.1]} 51... Qe5+ {[%clk 0:00:02.9]} 52. Ng3
{[%clk 0:00:04.8]} 52... Qa1 {[%clk 0:00:02]} 53. Qxe4 {[%clk 0:00:05.1]} 53...
Qxa7 {[%clk 0:00:02.8]} 54. Qh7 {[%clk 0:00:05.3]} 54... Ke8 {[%clk 0:00:03.4]}
55. Qh8+ {[%clk 0:00:05.2]} 55... Kd7 {[%clk 0:00:04.3]} 56. Qxh5 {[%clk
0:00:05.7]} 56... f6 {[%clk 0:00:04.7]} 57. Qf5+ {[%clk 0:00:05.9]} 57... Kc7
{[%clk 0:00:05.6]} 58. Ne4 {[%clk 0:00:05.4]} 58... Qd4 {[%clk 0:00:05.6]} 59.
Ng3 {[%clk 0:00:05.5]} 59... Qxb4 {[%clk 0:00:05.7]} 60. Qh7 {[%clk 0:00:05.2]}
60... d5 {[%clk 0:00:05.7]} 61. Qf7 {[%clk 0:00:05]} 61... Qd6 {[%clk
0:00:06.2]} 62. h4 {[%clk 0:00:04.9]} 62... d4 {[%clk 0:00:06.8]} 63. Qc4+
{[%clk 0:00:04.8]} 63... Kd8 {[%clk 0:00:06.7]} 64. Qd3 {[%clk 0:00:05.5]} 64...
e5 {[%clk 0:00:07.1]} 65. h5 {[%clk 0:00:05.7]} 65... Qf8 {[%clk 0:00:07.1]} 66.
Nf5 {[%clk 0:00:05.7]} 66... Qh8 {[%clk 0:00:07.2]} 67. h6 {[%clk 0:00:06]}
67... Kd7 {[%clk 0:00:07.6]} 68. Qb5+ {[%clk 0:00:06.2]} 68... Ke6 {[%clk
0:00:08.2]} 69. Qd3 {[%clk 0:00:06.3]} 69... Qg8 {[%clk 0:00:06.4]} 70. Qh3
{[%clk 0:00:06.9]} 70... Kd5 {[%clk 0:00:06.2]} 71. h7 {[%clk 0:00:07.3]} 71...
Qh8 {[%clk 0:00:06.5]} 72. Ne7+ {[%clk 0:00:07.5]} 72... Kc4 {[%clk 0:00:07.1]}
73. Ng6 {[%clk 0:00:08]} 73... Qb8 {[%clk 0:00:07.5]} 74. h8=Q {[%clk
0:00:07.9]} 1-0

[Event "Late-Titled-Tuesday-Blitz-August-29-2023"]
[Site "Chess.com"]
[Date "2023.08.29"]
[Round "6"]
[White "BillieKimbah"]
[Black "artin10862"]
[Result "0-1"]
[WhiteElo "3040"]
[BlackElo "2868"]
[TimeControl "180+1"]
[EndTime "15:07:25 PDT"]
[Termination "artin10862 won by checkmate"]

1. d4 {[%clk 0:03:00.9]} 1... Nf6 {[%clk 0:02:57.6]} 2. Nf3 {[%clk 0:03:01.4]}
2... e6 {[%clk 0:02:57.8]} 3. Bg5 {[%clk 0:03:01.8]} 3... d5 {[%clk 0:02:41.7]}
4. e3 {[%clk 0:03:01.7]} 4... c5 {[%clk 0:02:37.6]} 5. Nbd2 {[%clk 0:03:01.2]}
5... b6 {[%clk 0:02:33.3]} 6. c3 {[%clk 0:02:54.6]} 6... Bd6 {[%clk 0:02:27.7]}
7. Bb5+ {[%clk 0:02:50.5]} 7... Bd7 {[%clk 0:02:27]} 8. Bd3 {[%clk 0:02:50.2]}
8... Nc6 {[%clk 0:02:26.3]} 9. Qe2 {[%clk 0:02:45.2]} 9... Be7 {[%clk
0:02:24.8]} 10. Ne5 {[%clk 0:02:41.9]} 10... Nxe5 {[%clk 0:02:06]} 11. dxe5
{[%clk 0:02:42.8]} 11... Ng8 {[%clk 0:02:03.5]} 12. Bf4 {[%clk 0:02:39.5]} 12...
Bc6 {[%clk 0:01:50.3]} 13. O-O-O {[%clk 0:02:32.9]} 13... Qc7 {[%clk 0:01:44.4]}
14. Kb1 {[%clk 0:02:24.6]} 14... O-O-O {[%clk 0:01:43.3]} 15. e4 {[%clk
0:02:22.5]} 15... Bf8 {[%clk 0:01:42.3]} 16. exd5 {[%clk 0:02:14.6]} 16... Bxd5
{[%clk 0:01:42.1]} 17. Ne4 {[%clk 0:02:12.3]} 17... Kb8 {[%clk 0:01:32.1]} 18.
Nd6 {[%clk 0:02:03.6]} 18... Bxg2 {[%clk 0:01:13]} 19. Be4 {[%clk 0:01:56.7]}
19... Bxe4+ {[%clk 0:00:58.6]} 20. Qxe4 {[%clk 0:01:55.9]} 20... Bxd6 {[%clk
0:00:52.3]} 21. exd6 {[%clk 0:01:38.6]} 21... Qd7 {[%clk 0:00:51.9]} 22. Rhg1
{[%clk 0:01:38.4]} 22... f6 {[%clk 0:00:48.3]} 23. h4 {[%clk 0:01:07]} 23... e5
{[%clk 0:00:31.8]} 24. Be3 {[%clk 0:01:06.6]} 24... g6 {[%clk 0:00:31.2]} 25. f4
{[%clk 0:01:05.1]} 25... f5 {[%clk 0:00:23.5]} 26. Qxe5 {[%clk 0:00:59.7]} 26...
Nh6 {[%clk 0:00:23.8]} 27. Qd5 {[%clk 0:00:58.4]} 27... Rhe8 {[%clk 0:00:23.1]}
28. Qf3 {[%clk 0:00:42.9]} 28... Ng4 {[%clk 0:00:21.6]} 29. Rge1 {[%clk
0:00:35.5]} 29... Qb7 {[%clk 0:00:20.9]} 30. Qxb7+ {[%clk 0:00:26.2]} 30... Kxb7
{[%clk 0:00:21.8]} 31. Bc1 {[%clk 0:00:26.9]} 31... Rxe1 {[%clk 0:00:18.2]} 32.
Rxe1 {[%clk 0:00:27.8]} 32... Rd7 {[%clk 0:00:16.1]} 33. b4 {[%clk 0:00:24.9]}
33... Kc6 {[%clk 0:00:12.6]} 34. bxc5 {[%clk 0:00:23.2]} 34... bxc5 {[%clk
0:00:13.5]} 35. Re8 {[%clk 0:00:23.5]} 35... Nf6 {[%clk 0:00:12.4]} 36. Ra8
{[%clk 0:00:21.6]} 36... Ne4 {[%clk 0:00:11.1]} 37. Kc2 {[%clk 0:00:22]} 37...
Kxd6 {[%clk 0:00:11]} 38. Be3 {[%clk 0:00:21.7]} 38... Kc6 {[%clk 0:00:09.1]}
39. c4 {[%clk 0:00:21.5]} 39... Kb7 {[%clk 0:00:08]} 40. Rh8 {[%clk 0:00:20.4]}
40... Kc6 {[%clk 0:00:08]} 41. Rc8+ {[%clk 0:00:20.2]} 41... Rc7 {[%clk
0:00:07.6]} 42. Re8 {[%clk 0:00:18.9]} 42... Nf6 {[%clk 0:00:07.8]} 43. Rf8
{[%clk 0:00:18.3]} 43... Ng4 {[%clk 0:00:07.5]} 44. Bg1 {[%clk 0:00:17.3]} 44...
Kb6 {[%clk 0:00:05.6]} 45. Kc3 {[%clk 0:00:16.2]} 45... Kc6 {[%clk 0:00:05.5]}
46. Re8 {[%clk 0:00:15.2]} 46... Rd7 {[%clk 0:00:05.1]} 47. Rc8+ {[%clk
0:00:15.2]} 47... Rc7 {[%clk 0:00:05.5]} 48. Rxc7+ {[%clk 0:00:13.6]} 48... Kxc7
{[%clk 0:00:06.4]} 49. Bxc5 {[%clk 0:00:14]} 49... a6 {[%clk 0:00:07.1]} 50. Bg1
{[%clk 0:00:10.6]} 50... Kd6 {[%clk 0:00:06.1]} 51. Kd4 {[%clk 0:00:10.9]} 51...
Nf6 {[%clk 0:00:06.2]} 52. Bf2 {[%clk 0:00:10.9]} 52... Ne4 {[%clk 0:00:06.4]}
53. Be1 {[%clk 0:00:11.2]} 53... Kc6 {[%clk 0:00:06.5]} 54. Bb4 {[%clk
0:00:09.9]} 54... Ng3 {[%clk 0:00:05.1]} 55. Ke5 {[%clk 0:00:09.2]} 55... Ne2
{[%clk 0:00:05.6]} 56. a3 {[%clk 0:00:05.8]} 56... Ng1 {[%clk 0:00:05.6]} 57.
Be7 {[%clk 0:00:04.5]} 57... Nf3+ {[%clk 0:00:05.6]} 58. Ke6 {[%clk 0:00:05.1]}
58... Nd2 {[%clk 0:00:04.8]} 59. Kf7 {[%clk 0:00:04.4]} 59... Nxc4 {[%clk
0:00:05.1]} 60. Kg7 {[%clk 0:00:05.1]} 60... Kd7 {[%clk 0:00:04.3]} 61. Bf8
{[%clk 0:00:04.2]} 61... Ke6 {[%clk 0:00:04.3]} 62. Kxh7 {[%clk 0:00:02.8]}
62... Kf7 {[%clk 0:00:04.7]} 63. Bc5 {[%clk 0:00:03.4]} 63... Nd2 {[%clk
0:00:04.3]} 64. Kh6 {[%clk 0:00:03.7]} 64... Ne4 {[%clk 0:00:03.7]} 65. Bb4
{[%clk 0:00:04]} 65... Nf2 {[%clk 0:00:03.7]} 66. Kg5 {[%clk 0:00:03.2]} 66...
Nh3+ {[%clk 0:00:02.8]} 67. Kh6 {[%clk 0:00:04]} 67... Nxf4 {[%clk 0:00:03.7]}
68. Kg5 {[%clk 0:00:04.6]} 68... Ne6+ {[%clk 0:00:03.9]} 69. Kh6 {[%clk
0:00:05.1]} 69... Nf4 {[%clk 0:00:04]} 70. Bd6 {[%clk 0:00:04.9]} 70... Nh3
{[%clk 0:00:04.2]} 71. Bh2 {[%clk 0:00:04.1]} 71... f4 {[%clk 0:00:04.4]} 72. h5
{[%clk 0:00:04.5]} 72... g5 {[%clk 0:00:04.4]} 73. Kh7 {[%clk 0:00:04.1]} 73...
g4 {[%clk 0:00:04.7]} 74. h6 {[%clk 0:00:04.2]} 74... g3 {[%clk 0:00:05.1]} 75.
Bxg3 {[%clk 0:00:03.2]} 75... fxg3 {[%clk 0:00:06]} 76. Kh8 {[%clk 0:00:04.1]}
76... g2 {[%clk 0:00:06.2]} 77. h7 {[%clk 0:00:05]} 77... g1=Q {[%clk
0:00:06.8]} 78. a4 {[%clk 0:00:04.7]} 78... Qd4# {[%clk 0:00:07.7]} 0-1